bitfinex-derivatives/quotes_ETHF0:USTF0_20250309
["timestamp","ask_amount","ask_price","bid_price","bid_amount"]
[1741496154055,0.54811,2189.7,2189.6,3.2078]
[1741496154256,0.6389,2189.8,2189.6,3.2078]
[1741496154549,1.18701,2189.8,2189.6,3.2078]
[1741496155741,1.18701,2189.8,2189.6,3.75594]
[1741496156351,0.54811,2189.7,2189.6,3.2078]
[1741496158450,0.54811,2189.7,2189.6,3.75594]
[1741496159955,1.187,2189.8,2189.6,3.75594]
[1741496160155,1.187,2189.8,2189.6,3.75592]
[1741496161251,1.187,2189.8,2189.6,3.2078]
[1741496161961,1.19768,2189.9,2189.6,3.75594]
[1741496162161,1.19768,2189.9,2189.7,1.2457]
[1741496162558,0.6496,2189.9,2189.8,0.54809]
[1741496162861,0.6496,2189.9,2189.7,2.41211]
[1741496163250,1.19767,2189.9,2189.7,2.41211]
[1741496164053,0.6496,2189.9,2189.7,2.41211]
[1741496165363,1.19767,2189.9,2189.7,2.41211]
[1741496165568,0.6496,2189.9,2189.7,2.41211]
[1741496165768,1.19767,2189.9,2189.7,2.41211]
[1741496166174,1.19767,2189.9,2189.7,1.864]
[1741496166370,1.19767,2189.9,2189.7,2.41211]
[1741496167066,0.6496,2189.9,2189.7,2.41211]
[1741496167277,1.19767,2189.9,2189.7,2.41211]
[1741496167468,0.6496,2189.9,2189.7,2.41211]
[1741496167669,0.00685354,2190.1,2189.7,1.864]
[1741496168175,0.00685354,2190.1,2189.9,0.54805]
[1741496168380,0.00685354,2190.1,2190.0,0.6292]
[1741496168679,0.00685354,2190.1,2190.0,1.78774]
[1741496169075,0.00685354,2190.1,2190.0,2.14511353]
[1741496169679,0.00685354,2190.1,2190.0,1.59707353]
[1741496171079,0.00685354,2190.1,2190.0,2.14511353]
[1741496171672,0.00685354,2190.1,2190.0,1.2397]
[1741496173081,0.00685354,2190.1,2190.0,1.78774]
[1741496173584,0.00685354,2190.1,2190.0,1.2397]
[1741496174783,0.00685354,2190.1,2190.0,1.78774]
[1741496174973,0.00685354,2190.1,2190.0,2.13177669]
[1741496176783,0.00685354,2190.1,2190.0,1.58373669]
[1741496177387,0.00685354,2190.1,2190.0,2.13177669]
[1741496178784,0.00685354,2190.1,2190.0,2.76207669]
[1741496182787,3.2078,2190.4,2190.0,2.21403669]
[1741496182987,3.2078,2190.4,2190.2,0.54797]
[1741496183192,3.2078,2190.4,2190.3,0.6462]
[1741496183494,3.2078,2190.4,2190.3,1.2875]
[1741496183994,1.17052,2190.5,2190.3,1.2875]
[1741496184194,0.64915354,2190.6,2190.4,0.54794]
[1741496184389,0.64915354,2190.6,2190.3,1.2875]
[1741496184592,1.81475354,2190.6,2190.3,1.2875]
[1741496185091,1.81475354,2190.6,2190.3,1.83546]
[1741496185489,0.54794,2190.4,2190.3,1.2875]
[1741496187395,0.54794,2190.4,2190.3,0.6413]
[1741496187594,0.54797,2190.3,2190.1,4.39885354]
[1741496187794,1.18718,2190.3,2190.1,4.98856354]
[1741496189002,0.6392,2190.3,2190.1,4.44055354]
[1741496189194,0.6392,2190.3,2190.2,0.54799]
[1741496189394,0.6392,2190.3,2190.1,4.44055354]
[1741496189602,0.6392,2190.3,2190.1,4.98855354]
[1741496190103,0.6392,2190.3,2190.1,4.44055354]
[1741496190297,0.6392,2190.3,2190.2,0.54799]
[1741496190495,0.54796,2190.4,2190.2,0.54799]
[1741496190701,1.15993,2190.5,2190.2,0.54799]
[1741496190902,0.54794,2190.4,2190.2,0.54799]
[1741496191898,1.15993,2190.5,2190.2,0.54797]
[1741496192094,0.612,2190.5,2190.2,0.54797]
[1741496192400,0.54794,2190.4,2190.1,4.98855354]
[1741496192602,0.6545,2190.3,2190.1,4.98855354]
[1741496192791,1.20247,2190.3,2190.1,4.98855354]
[1741496194503,0.54799,2190.2,2190.1,3.80435354]
[1741496194692,0.6499,2190.2,2190.1,3.80435354]
[1741496194894,0.6499,2190.2,2190.1,4.35236354]
[1741496195699,0.6499,2190.2,2190.1,4.94426354]
[1741496196095,0.54793,2190.5,2190.1,4.39625354]
[1741496196297,0.6424,2190.5,2190.3,0.54795]
[1741496196503,0.6424,2190.5,2190.1,5.01305354]
[1741496196804,0.65675354,2190.6,2190.5,0.54791]
[1741496197002,0.00685354,2190.6,2190.5,0.54791]
[1741496203008,0.6265,2191.0,2190.4,5.1548]
[1741496203210,0.6265,2191.0,2190.8,0.54783]
[1741496203407,0.6265,2191.0,2190.9,0.6436]
[1741496203610,4.40548,2191.1,2190.9,0.6436]
[1741496203814,4.40548,2191.1,2190.9,1.2709]
[1741496204106,3.2078,2191.1,2190.9,1.2709]
[1741496204511,3.2078,2191.1,2190.9,1.8187]
[1741496205013,3.2078,2191.1,2190.9,1.81871]
[1741496205211,3.75558,2191.1,2190.9,1.2709]
[1741496205405,3.2078,2191.1,2190.9,1.2709]
[1741496205711,0.54779,2191.0,2190.9,1.2709]
[1741496206203,0.54779,2191.0,2190.9,0.6436]
[1741496206408,0.54781,2191.0,2190.7,0.54786]
[1741496206605,0.54781,2191.0,2190.7,3.75566]
[1741496206801,0.54781,2191.0,2190.8,0.6124]
[1741496207006,3.2078,2191.1,2190.8,0.6124]
[1741496207208,0.54781,2190.9,2190.8,0.6124]
[1741496207412,0.6107,2191.0,2190.8,0.6124]
[1741496207601,0.6107,2191.0,2190.7,3.2078]
[1741496207804,0.54784,2190.8,2190.7,3.2078]
[1741496208006,0.5933,2190.9,2190.6,0.5997]
[1741496208208,1.18036,2190.7,2190.6,0.5997]
[1741496209220,0.6325,2190.7,2190.6,0.5997]
[1741496209917,0.6325,2190.7,2190.6,1.14759]
[1741496210214,0.6325,2190.7,2190.6,0.5997]
[1741496211915,0.6325,2190.7,2190.6,1.14759]
[1741496212111,0.5478,2191.0,2190.7,0.54784]
[1741496212318,0.5478,2191.0,2190.8,0.6186]
[1741496212614,0.54784,2190.8,2190.6,0.5997]
[1741496212816,3.2078,2191.1,2190.6,0.5997]
[1741496213015,0.6221,2190.7,2190.6,0.5997]
[1741496214318,1.16996,2190.7,2190.6,0.5997]
[1741496216520,0.6221,2190.7,2190.6,0.5997]
[1741496216820,0.6221,2190.7,2190.6,1.14759]
[1741496217015,1.16996,2190.7,2190.6,0.5997]
[1741496223816,0.54789,2190.6,2190.5,0.6196]
[1741496224019,1.16998,2190.7,2190.5,1.2465]
[1741496224819,0.54789,2190.6,2190.5,1.2465]
[1741496225825,0.6221,2190.7,2190.5,1.2465]
[1741496226018,1.16998,2190.7,2190.5,1.2465]
[1741496227023,1.16998,2190.7,2190.5,1.79441]
[1741496227431,1.16998,2190.7,2190.5,1.2465]
[1741496229422,0.6511,2190.8,2190.5,1.2465]
[1741496229626,0.54784,2190.8,2190.6,0.54789]
[1741496229935,0.54783,2190.9,2190.6,0.54788]
[1741496230334,0.54783,2190.9,2190.6,0.54789]
[1741496231535,0.54784,2190.8,2190.5,1.7944]
[1741496233231,1.19607,2190.7,2190.5,1.7944]
[1741496233435,0.6482,2190.7,2190.5,1.7944]
[1741496233635,1.19607,2190.7,2190.5,1.2465]
[1741496233840,1.8421,2190.7,2190.5,1.2465]
[1741496234036,2.38998,2190.7,2190.5,1.2465]
[1741496234237,2.38997,2190.7,2190.5,1.2465]
[1741496234541,1.8421,2190.7,2190.5,1.2465]
[1741496234743,0.54789,2190.6,2190.5,1.2465]
[1741496235135,2.38998,2190.7,2190.5,1.2465]
[1741496235543,0.54789,2190.6,2190.5,1.2465]
[1741496239152,0.54789,2190.6,2190.4,0.54793]
[1741496239358,0.5479,2190.6,2190.4,1.16604]
[1741496240158,0.5479,2190.6,2190.3,3.2078]
[1741496240159,0.54794,2190.4,2190.3,3.2078]
[1741496240859,1.8421,2190.7,2190.3,3.2078]
[1741496241060,0.54794,2190.4,2190.3,3.2078]
[1741496245251,0.5479,2190.6,2190.4,0.54793]
[1741496245455,3.7881,2190.7,2190.3,3.2078]
[1741496245659,0.54793,2190.5,2190.3,3.75575]
[1741496245862,0.54794,2190.4,2190.3,3.2078]
[1741496246361,3.7881,2190.7,2190.3,3.2078]
[1741496246561,0.54794,2190.4,2190.3,3.2078]
[1741496249758,0.54792,2190.5,2190.3,3.2078]
[1741496250361,3.7881,2190.7,2190.3,3.2078]
[1741496250562,0.54793,2190.5,2190.3,3.2078]
[1741496251061,0.54793,2190.5,2190.3,3.75576]
[1741496251262,0.54793,2190.5,2190.3,3.2078]
[1741496251463,0.54793,2190.5,2190.3,3.75576]
[1741496251765,0.54793,2190.5,2190.3,3.2078]
[1741496252269,0.54792,2190.5,2190.3,3.75575]
[1741496252456,0.54792,2190.5,2190.3,4.37505]
[1741496252659,3.1954,2190.7,2190.3,4.37505]
[1741496252859,0.54792,2190.5,2190.3,4.37505]
[1741496253366,3.1954,2190.7,2190.3,3.8271]
[1741496253566,0.54791,2190.5,2190.3,4.37505]
[1741496254167,0.54791,2190.6,2190.3,4.37506]
[1741496254468,3.1954,2190.7,2190.3,4.37506]
[1741496254667,0.54789,2190.6,2190.3,4.37506]
[1741496255058,3.1954,2190.7,2190.3,4.37506]
[1741496255059,3.1954,2190.7,2190.3,3.8271]
[1741496255261,1.2494,2190.7,2190.3,3.8271]
[1741496255462,0.6482,2190.7,2190.3,3.8271]
[1741496255663,0.6482,2190.7,2190.5,0.54789]
[1741496255860,0.6482,2190.7,2190.6,1.16259]
[1741496256066,0.54782,2190.9,2190.6,1.16259]
[1741496256367,0.54783,2190.9,2190.6,1.16259]
[1741496256567,0.611,2191.0,2190.7,0.6199]
[1741496256761,0.54782,2190.9,2190.7,0.6199]
[1741496257162,0.611,2191.0,2190.7,0.6199]
[1741496257469,0.54782,2190.9,2190.7,0.6199]
[1741496257672,1.1588,2191.0,2190.7,1.16775]
[1741496257967,1.1588,2191.0,2190.7,1.77095]
[1741496258166,0.611,2191.0,2190.8,0.54783]
[1741496258470,0.611,2191.0,2190.9,0.6323]
[1741496258670,3.2078,2191.2,2190.9,0.6323]
[1741496258970,3.8119,2191.4,2190.9,1.1801]
[1741496259274,0.54775,2191.2,2191.0,0.6341]
[1741496260258,3.8119,2191.4,2191.0,0.6341]
[1741496260563,0.54773,2191.3,2191.0,1.18189]
[1741496260762,0.54774,2191.2,2191.0,1.18189]
[1741496261160,0.54773,2191.3,2191.0,1.18189]
[1741496261563,3.2078,2191.5,2191.0,0.6341]
[1741496261773,3.2078,2191.5,2191.3,0.54769]
[1741496261964,3.2078,2191.5,2191.4,1.2354]
[1741496263074,3.2078,2191.5,2191.4,0.5927]
[1741496263373,0.54771,2191.3,2191.2,0.00685354]
[1741496264068,1.14331,2191.3,2191.2,0.00685354]
[1741496265868,0.5956,2191.3,2191.2,0.00685354]
[1741496266075,1.14331,2191.3,2191.2,0.00685354]
[1741496275881,0.54771,2191.3,2191.2,0.00685354]
[1741496276081,1.1411,2191.4,2191.2,0.00685354]
[1741496276273,0.5934,2191.4,2191.2,0.00685354]
[1741496276479,1.1411,2191.4,2191.2,0.00685354]
[1741496277186,0.5934,2191.4,2191.2,0.00685354]
[1741496277386,1.14109,2191.4,2191.2,0.55458354]
[1741496277583,0.6358,2191.7,2191.3,0.628]
[1741496277781,1.2752,2191.7,2191.6,0.54764]
[1741496278087,3.2078,2192.2,2191.6,3.2078]
[1741496278287,3.2078,2192.2,2191.7,1.2397]
[1741496278584,0.54754,2192.0,2191.7,1.8756]
[1741496278784,3.2078,2192.2,2191.7,1.8756]
[1741496278984,0.54753,2192.1,2191.8,0.54759]
[1741496279281,0.54753,2192.1,2191.7,2.4232]
[1741496279986,0.54754,2192.0,2191.7,2.4232]
[1741496280389,0.54755,2192.0,2191.7,2.4232]
[1741496280686,0.6502,2191.9,2191.7,2.4232]
[1741496280989,0.54753,2192.1,2191.8,0.54759]
[1741496281180,1.19773,2192.1,2191.7,2.4232]
[1741496281580,1.15994,2192.0,2191.7,2.4232]
[1741496281789,0.6124,2192.0,2191.8,0.54759]
[1741496282084,1.19773,2192.1,2191.8,0.54759]
[1741496282583,0.6502,2192.1,2191.7,1.8756]
[1741496282983,1.19772,2192.1,2191.8,0.54757]
[1741496283482,0.6502,2192.1,2191.7,1.8756]
[1741496283687,0.54755,2192.0,2191.7,2.42321]
[1741496286290,0.54755,2192.0,2191.8,0.54758]
[1741496286489,0.54755,2192.0,2191.7,2.4232]
[1741496287188,0.6457,2192.2,2191.7,2.4232]
[1741496287587,0.54756,2192.0,2191.7,2.4232]
[1741496287788,0.54758,2191.9,2191.7,2.4232]
[1741496288287,0.6457,2192.2,2191.7,2.4232]
[1741496288479,0.54757,2191.9,2191.7,2.4232]
[1741496288684,0.54756,2192.0,2191.7,2.4232]
[1741496289096,0.54756,2192.0,2191.7,1.8756]
[1741496289288,0.54756,2192.0,2191.8,0.54759]
[1741496289489,0.54759,2191.8,2191.7,1.2397]
[1741496289692,0.54759,2191.8,2191.7,0.6117]
[1741496289887,0.54761,2191.7,2191.6,3.2078]
[1741496290086,1.19131,2191.7,2191.6,3.2078]
[1741496291195,0.54764,2191.6,2191.5,0.6146]
[1741496293095,0.54764,2191.6,2191.3,0.6038]
[1741496293290,0.54769,2191.4,2191.3,1.2368]
[1741496293797,0.54771,2191.3,2191.2,0.00685354]
[1741496301600,1.15871,2191.3,2191.2,0.00685354]
[1741496303295,1.15871,2191.3,2190.7,1.291]
[1741496303296,0.54784,2190.8,2190.7,1.291]
[1741496303500,0.54784,2190.8,2190.7,0.6454]
[1741496304997,0.54789,2190.6,2190.5,3.21465354]
[1741496305200,0.54789,2190.6,2190.5,3.85275354]
[1741496306010,0.54789,2190.6,2190.5,3.21465354]
[1741496308904,1.20049,2190.6,2190.5,3.21465354]
[1741496317921,1.20049,2190.6,2190.5,0.00685354]
[1741496322431,0.54789,2190.6,2190.5,0.00685354]
[1741496322830,3.8531,2190.9,2190.5,0.00685354]
[1741496323026,5.7991,2190.9,2190.5,0.64595354]
[1741496323227,0.54788,2190.7,2190.5,1.19385354]
[1741496323422,0.54785,2190.8,2190.6,1.14107]
[1741496323623,2.5913,2190.9,2190.6,1.14107]
[1741496323829,0.54784,2190.8,2190.6,1.14107]
[1741496324631,2.5913,2190.9,2190.6,0.5932]
[1741496325026,0.54785,2190.8,2190.6,1.14108]
[1741496325233,2.5913,2190.9,2190.6,0.5932]
[1741496325234,1.946,2190.9,2190.6,0.5932]
[1741496325426,0.54784,2190.8,2190.6,4.34888]
[1741496325629,0.00685354,2191.0,2190.6,4.34888]
[1741496326037,0.54784,2190.8,2190.6,4.34888]
[1741496326334,0.00685354,2191.0,2190.6,0.5932]
[1741496326335,0.54786,2190.7,2190.6,0.5932]
[1741496330730,0.54785,2190.8,2190.6,1.14108]
[1741496331129,0.6188,2190.9,2190.6,0.5932]
[1741496331839,0.54786,2190.7,2190.6,0.5932]
[1741496342635,0.54789,2190.6,2190.5,0.00685354]
[1741496342841,1.19839,2190.6,2190.5,0.00685354]
[1741496347542,0.54799,2190.2,2190.0,3.2078]
[1741496347742,0.54796,2190.3,2190.1,0.54801]
[1741496347940,1.2232,2190.5,2190.0,4.73491556]
[1741496348748,1.2232,2190.5,2190.0,4.7417691]
[1741496349251,0.54799,2190.2,2190.0,4.7417691]
[1741496349841,0.54799,2190.2,2190.0,3.83415354]
[1741496350044,0.54799,2190.2,2190.0,4.17943311]
[1741496350249,1.2232,2190.5,2190.0,4.17943311]
[1741496350448,0.54801,2190.1,2190.0,3.83415354]
[1741496352449,1.2232,2190.5,2190.0,3.83415354]
[1741496352651,0.54798,2190.3,2190.0,4.38218354]
[1741496352946,1.2232,2190.5,2190.0,4.38218354]
[1741496353149,0.548,2190.2,2190.0,3.83415354]
[1741496353850,0.548,2190.2,2190.0,4.38218354]
[1741496354238,0.548,2190.2,2190.0,3.83415354]
[1741496355650,1.2232,2190.5,2190.0,4.38217354]
[1741496355651,0.54798,2190.3,2190.0,4.38217354]
[1741496355948,0.54798,2190.3,2190.1,0.6109]
[1741496357848,0.54798,2190.3,2190.2,0.6386]
[1741496359151,0.54796,2190.3,2190.1,0.6109]
[1741496359844,0.54799,2190.2,2190.1,0.6109]
[1741496360045,0.5973,2190.5,2190.1,0.6109]
[1741496360246,0.54798,2190.3,2190.1,0.6109]
[1741496360549,0.5973,2190.5,2190.1,0.6109]
[1741496360747,0.54795,2190.4,2190.1,1.1589]
[1741496363551,0.6505,2190.6,2190.1,1.1589]
[1741496363746,0.54796,2190.4,2190.1,1.1589]
[1741496364052,0.54797,2190.3,2190.1,1.1589]
[1741496364257,0.54799,2190.2,2190.1,0.6109]
[1741496371753,0.54801,2190.1,2190.0,3.83415354]
[1741496372554,0.54801,2190.1,2190.0,0.62635354]
[1741496375757,1.19651,2190.1,2190.0,0.00685354]
[1741496376950,0.54809,2189.8,2189.7,0.6456]
[1741496380056,0.54807,2189.9,2189.7,1.2514]
[1741496380254,0.54807,2189.9,2189.7,1.79951]
[1741496380461,0.54807,2189.9,2189.7,1.2514]
[1741496380663,1.19636,2190.0,2189.7,1.7995]
[1741496381055,1.19636,2190.0,2189.7,1.2514]
[1741496381253,0.6483,2190.0,2189.8,0.54807]
[1741496381454,1.19636,2190.0,2189.9,0.6521]
[1741496389159,0.54806,2190.0,2189.9,0.6521]
[1741496396271,0.6044,2190.2,2189.9,0.6521]
[1741496396467,0.54804,2190.0,2189.9,0.6521]
[1741496397872,1.2418,2190.2,2189.7,0.6058]
[1741496398073,0.54809,2189.9,2189.7,1.7803]
[1741496400270,0.6044,2190.2,2189.7,1.2322]
[1741496400472,3.2078,2190.3,2189.7,3.1782]
[1741496400678,0.54805,2190.0,2189.8,0.54808]
[1741496401177,0.54805,2190.0,2189.9,3.2078]
[1741496403578,0.6474,2190.1,2189.6,3.2078]
[1741496403775,0.54811,2189.7,2189.6,3.2078]
[1741496404377,0.5481,2189.8,2189.6,3.2078]
[1741496404573,1.187,2189.8,2189.6,3.2078]
[1741496404977,0.6389,2189.8,2189.6,3.2078]
[1741496405174,1.18699,2189.8,2189.6,3.2078]
[1741496405378,1.18699,2189.8,2189.7,0.6233]
[1741496407383,0.00685354,2189.9,2189.7,0.6233]
[1741496407583,0.54809,2189.8,2189.7,1.2276]
[1741496411385,0.00685354,2189.9,2189.7,1.7757]
[1741496411578,0.00685354,2189.9,2189.8,1.18929]
[1741496414289,4.57751,2190.7,2189.8,0.6412]
[1741496414492,0.54799,2190.2,2190.0,0.54803]
[1741496414691,0.54799,2190.2,2190.1,1.2809]
[1741496417684,1.80898,2190.3,2190.1,1.2809]
[1741496418194,0.54799,2190.2,2190.1,1.2809]
[1741496422100,0.54799,2190.2,2190.1,0.6305]
[1741496425104,1.9097,2190.3,2189.9,3.2078]
[1741496425404,3.2078,2190.2,2189.7,0.6339]
[1741496425593,0.54809,2189.8,2189.7,1.2847]
[1741496426195,0.54809,2189.8,2189.7,0.6508]
[1741496426792,0.54811,2189.7,2189.6,3.2078]
[1741496430307,0.54809,2189.8,2189.6,3.2078]
[1741496430505,0.54809,2189.8,2189.6,3.75594]
[1741496430706,0.54809,2189.8,2189.6,3.2078]
[1741496431207,0.54811,2189.7,2189.6,3.2078]
[1741496431395,1.2326,2189.9,2189.6,3.2078]
[1741496431600,0.54811,2189.7,2189.6,3.2078]
[1741496432106,1.2326,2189.9,2189.6,3.2078]
[1741496432304,0.54811,2189.8,2189.6,3.2078]
[1741496432608,0.54811,2189.7,2189.6,3.2078]
[1741496444418,0.54811,2189.7,2189.5,2.10127281]
[1741496444618,0.54811,2189.7,2189.6,3.2078]
[1741496448428,0.54811,2189.8,2189.6,3.2078]
[1741496448619,0.54811,2189.7,2189.6,3.2078]
[1741496451921,0.54814,2189.6,2189.5,0.00685354]
[1741496452218,2.39024,2189.6,2189.5,0.00685354]
[1741496452722,0.54819,2189.4,2189.3,3.2078]
[1741496459632,0.54824,2189.2,2189.1,0.00685354]
[1741496460221,1.14344,2189.2,2189.1,0.00685354]
[1741496461334,0.5952,2189.2,2189.1,0.00685354]
[1741496461536,1.14344,2189.2,2189.1,0.00685354]
[1741496461735,1.14344,2189.2,2189.1,0.63675354]
[1741496462740,0.54824,2189.2,2189.1,0.63675354]
[1741496463822,0.54824,2189.2,2189.1,0.00685354]
[1741496490544,2.47013423,2189.3,2188.7,1.2752]
[1741496490849,0.54834,2188.8,2188.7,0.6379]
[1741496492042,0.54834,2188.8,2188.7,1.235]
[1741496492851,1.946,2188.9,2188.7,1.78336]
[1741496493055,0.54834,2188.8,2188.7,1.235]
[1741496511366,0.54836,2188.7,2188.6,3.2078]
[1741496513969,0.5892,2188.8,2188.5,0.00685354]
[1741496514168,0.54839,2188.6,2188.5,0.00685354]
[1741496514569,0.54839,2188.6,2188.5,0.59705354]
[1741496526275,3.2078,2188.9,2188.5,0.59705354]
[1741496526474,0.54838,2188.7,2188.5,1.14545354]
[1741496527370,1.37106,2188.5,2187.8,23.7208]
[1741496527674,2.5378,2188.4,2187.9,1.2295]
[1741496527970,0.54849,2188.3,2188.0,0.54854]
[1741496528174,0.54849,2188.3,2188.1,0.6209]
[1741496528373,0.54846,2188.3,2188.2,0.6068]
[1741496528574,0.54846,2188.3,2188.2,1.2295]
[1741496532173,1.20126,2188.3,2188.2,1.2295]
[1741496533180,0.54851,2188.1,2188.0,0.00685354]
[1741496534280,1.946,2188.4,2188.0,0.00685354]
[1741496534480,1.946,2188.4,2188.1,0.54851]
[1741496534481,0.54847,2188.3,2188.1,0.54851]
[1741496534683,0.54847,2188.3,2188.2,1.2217]
[1741496534885,0.54847,2188.3,2188.2,1.8533]
[1741496537074,2.49446,2188.4,2188.2,2.40179]
[1741496537280,2.49445,2188.4,2188.2,2.40178]
[1741496537480,1.946,2188.4,2188.2,1.8533]
[1741496537678,1.946,2188.4,2188.2,2.40178]
[1741496537679,2.49445,2188.4,2188.2,2.40178]
[1741496538786,0.54845,2188.4,2188.2,2.40178]
[1741496541190,1.8653,2188.7,2188.2,1.8533]
[1741496541479,0.54834,2188.8,2188.4,3.2078]
[1741496541686,0.54835,2188.8,2188.6,0.54838]
[1741496541886,0.54834,2188.9,2188.6,0.54838]
[1741496542080,0.54834,2188.9,2188.7,0.6056]
[1741496542285,0.54834,2188.9,2188.7,1.15396]
[1741496542488,0.61885354,2189.0,2188.7,0.6056]
[1741496542787,0.00685354,2189.0,2188.9,0.54831]
[1741496542987,0.00685354,2189.0,2188.9,1.14171]
[1741496543189,9.58904769,2189.4,2189.3,0.54821]
[1741496543493,3.75597,2189.5,2189.3,0.54821]
[1741496543692,3.75597,2189.5,2189.4,0.6164]
[1741496544295,0.54821,2189.4,2189.2,1.222]
[1741496544491,0.54821,2189.3,2189.2,1.22885354]
[1741496544696,0.54821,2189.3,2189.2,0.00685354]
[1741496545300,1.76071,2189.3,2189.2,0.00685354]
[1741496547196,0.54821,2189.3,2189.2,0.00685354]
[1741496547396,1.17269,2189.4,2189.2,0.55508354]
[1741496547594,0.6245,2189.4,2189.3,0.54821]
[1741496548897,1.17269,2189.4,2189.2,0.55508354]
[1741496550800,0.6245,2189.4,2189.3,0.54821]
[1741496551604,3.8142,2189.5,2189.3,0.54821]
[1741496551798,1.226,2189.6,2189.4,1.18679]
[1741496551999,0.55497354,2189.7,2189.5,1.14206]
[1741496553398,0.00685354,2189.7,2189.5,0.5939]
[1741496553605,0.00685354,2189.7,2189.6,0.54814]
[1741496574416,0.55499354,2189.7,2189.5,3.2078]
[1741496574616,0.6324,2189.6,2189.5,3.75596]
[1741496574810,0.00685354,2189.7,2189.6,0.54814]
[1741496575011,0.00685354,2189.7,2189.6,1.74004]
[1741496580822,3.2078,2190.5,2189.7,1.37028]
[1741496581024,0.548,2190.2,2190.0,3.2078]
[1741496581226,0.54801,2190.1,2190.0,3.2078]
[1741496581424,1.15571,2190.1,2190.0,3.2078]
[1741496583229,0.6077,2190.1,2189.8,0.54809]
[1741496583417,1.2775,2190.0,2189.6,4.3997]
[1741496583725,1.82555,2190.0,2189.8,0.54809]
[1741496584927,0.54811,2189.8,2189.6,3.2078]
[1741496585123,0.54811,2189.7,2189.6,3.2078]
[1741496585329,1.17671,2189.7,2189.6,3.2078]
[1741496585632,0.6286,2189.7,2189.6,3.75594]
[1741496585922,1.17671,2189.7,2189.6,3.2078]
[1741496587529,0.6286,2189.7,2189.6,3.75594]
[1741496587830,0.54808,2189.9,2189.7,0.54811]
[1741496588027,5.1518,2190.1,2189.6,3.2078]
[1741496588230,0.54808,2189.9,2189.7,1.1615]
[1741496588426,0.5948,2190.0,2189.7,0.6134]
[1741496588834,1.246,2190.1,2189.9,0.54806]
[1741496589020,1.246,2190.1,2189.7,1.2378]
[1741496589631,1.246,2190.1,2190.0,0.54804]
[1741496590231,1.246,2190.1,2190.0,1.16144]
[1741496591030,0.6537,2190.1,2190.0,1.16144]
[1741496591527,1.16743354,2190.3,2190.0,0.6134]
[1741496591528,0.00685354,2190.3,2190.0,0.6134]
[1741496591734,0.00685354,2190.3,2190.2,0.54799]
[1741496594235,0.00685354,2190.3,2190.2,3.75579]
[1741496597534,0.00685354,2190.3,2190.2,4.39929]
[1741496601536,0.00685354,2190.3,2190.2,3.2078]
[1741496601741,0.55481354,2190.3,2190.2,3.2078]
[1741496602036,0.00685354,2190.3,2190.2,3.2078]
[1741496603241,1.21055354,2190.3,2190.2,3.2078]
[1741496603945,1.21055354,2190.3,2190.2,3.75579]
[1741496604432,1.21055354,2190.3,2190.2,3.2078]
[1741496604638,0.54801,2190.1,2189.9,3.55265081]
[1741496604941,1.21055354,2190.3,2189.9,3.2078]
[1741496604942,1.18924,2190.0,2189.9,3.2078]
[1741496605340,1.18924,2190.0,2189.7,0.54811]
[1741496605539,1.19507,2189.9,2189.7,0.89707627]
[1741496605832,0.647,2189.9,2189.7,0.89707627]
[1741496606535,0.647,2189.9,2189.7,0.34896627]
[1741496606742,0.647,2189.9,2189.6,1.62552665]
[1741496607040,0.6412,2190.0,2189.9,0.54806]
[1741496607238,1.19501,2190.2,2190.0,0.54803]
[1741496607829,1.19501,2190.2,2190.0,0.54804]
[1741496608034,1.19499,2190.2,2190.0,0.54804]
[1741496608234,0.647,2190.2,2190.0,0.54804]
[1741496608437,0.647,2190.2,2189.9,1.14845]
[1741496608836,0.54802,2190.1,2189.9,1.14845]
[1741496609344,0.647,2190.2,2189.9,1.14845]
[1741496609543,0.54801,2190.1,2189.9,1.14845]
[1741496609744,1.19501,2190.2,2189.9,1.14845]
[1741496610536,0.54801,2190.1,2189.9,1.14845]
[1741496610736,1.19501,2190.2,2189.9,1.14845]
[1741496611745,0.54801,2190.1,2189.9,1.14845]
[1741496615247,0.54806,2189.9,2189.8,3.2078]
[1741496615950,1.17056,2189.9,2189.8,3.2078]
[1741496617354,0.54809,2189.8,2189.7,0.6436]
[1741496617559,0.6225,2189.9,2189.7,0.6436]
[1741496618253,0.54809,2189.8,2189.7,0.6436]
[1741496618453,1.17058,2189.9,2189.7,1.19171]
[1741496619551,0.6225,2189.9,2189.7,1.19171]
[1741496619854,0.54803,2190.1,2189.7,0.6436]
[1741496620053,1.9041,2190.2,2189.7,1.1917]
[1741496620255,0.54807,2189.9,2189.7,1.1917]
[1741496621051,1.9041,2190.2,2189.7,1.1917]
[1741496621354,0.54803,2190.1,2189.7,0.6436]
[1741496621553,0.54803,2190.1,2189.8,0.54807]
[1741496621860,2.45211,2190.2,2190.0,0.54803]
[1741496622249,0.54802,2190.1,2189.9,0.54806]
[1741496622653,2.45211,2190.2,2189.8,3.2078]
[1741496622852,2.45211,2190.2,2189.9,0.54805]
[1741496623055,1.9041,2190.2,2189.9,0.54805]
[1741496623357,0.54802,2190.1,2190.0,0.6075]
[1741496623649,0.54801,2190.1,2190.0,0.6075]
[1741496623855,1.9041,2190.2,2190.0,0.6075]
[1741496624050,2.45211,2190.2,2190.0,0.6075]
[1741496624452,1.9041,2190.2,2190.0,0.6075]
[1741496624652,0.54801,2190.1,2190.0,0.6075]
[1741496625959,2.4521,2190.2,2190.0,1.15553]
[1741496626160,0.54801,2190.1,2190.0,0.6075]
[1741496626461,2.4521,2190.2,2190.0,0.6075]
[1741496626660,1.8154,2190.2,2190.0,1.15553]